bitfinex/quotes_BTCUSD_20210101
["timestamp","ask_amount","ask_price","bid_price","bid_amount"]
[1609491931175,0.215,29061.0,29060.0,1.16132762]
[1609491931471,5.215,29061.0,29060.0,1.16132762]
[1609491932291,5.19,29061.0,29060.0,1.16132762]
[1609491932795,5.0,29061.0,29060.0,1.16132762]
[1609491933192,0.0002,29063.0,29060.0,1.16132762]
[1609491933394,0.0002,29063.0,29060.0,1.02000024]
[1609491933595,5.0,29061.0,29060.0,1.02000024]
[1609491933801,6.115547,29061.0,29060.0,1.02000024]
[1609491934015,1.499637,29061.0,29054.0,0.57416721]
[1609491934210,1.499637,29061.0,29056.0,1.0]
[1609491934211,0.86196184,29060.0,29056.0,1.0]
[1609491934511,5.365747,29060.0,29056.0,1.0]
[1609491934706,0.33180302,29059.0,29056.0,1.0]
[1609491934906,0.365547,29058.0,29056.0,1.0]
[1609491935205,1.20180302,29057.0,29053.0,5.66998751]
[1609491935406,0.69735002,29056.0,29053.0,5.179221]
[1609491935604,0.33180302,29056.0,29053.0,5.179221]
[1609491935905,5.365547,29055.0,29053.0,5.179221]
[1609491936102,5.543737,29055.0,29053.0,5.179221]
[1609491936305,5.33180302,29054.0,29053.0,5.179221]
[1609491936506,5.0,29054.0,29053.0,5.26653381]
[1609491936905,5.0,29054.0,29053.0,5.179221]
[1609491937906,0.33180302,29058.0,29053.0,5.179221]
[1609491938109,0.33180302,29058.0,29054.0,0.86000007]
[1609491938110,0.69735002,29058.0,29054.0,0.86000007]
[1609491938312,0.69735002,29058.0,29054.0,0.02000007]
[1609491938313,5.0,29057.0,29054.0,0.02000007]
[1609491938510,0.33180302,29056.0,29054.0,0.12376167]
[1609491938807,5.0,29055.0,29054.0,0.12376167]
[1609491939552,5.0,29055.0,29054.0,0.02000007]
[1609491939753,5.60814,29055.0,29054.0,0.02000007]
[1609491940152,0.59814,29055.0,29054.0,0.02000007]
[1609491940457,5.18314,29055.0,29054.0,0.12288399]
[1609491940654,0.18314,29055.0,29054.0,0.12288399]
[1609491940954,5.18314,29055.0,29054.0,0.12288399]
[1609491941258,0.18314,29055.0,29054.0,0.12288399]
[1609491941456,5.0,29055.0,29054.0,0.12288399]
[1609491941655,5.16,29055.0,29054.0,1.12288399]
[1609491941857,5.0,29055.0,29054.0,1.02000007]
[1609491942455,0.33180302,29061.0,29054.0,1.02000007]
[1609491942657,0.82821786,29061.0,29054.0,1.02000007]
[1609491942863,0.2946,29063.0,29054.0,1.12410241]
[1609491942864,5.0,29055.0,29054.0,1.12410241]
[1609491943060,5.0,29060.0,29054.0,1.02000007]
[1609491943290,0.49641484,29059.0,29054.0,1.02000007]
[1609491943586,0.33180302,29058.0,29054.0,1.02000007]
[1609491943790,5.0002,29060.0,29054.0,1.02000007]
[1609491943987,5.0,29058.0,29054.0,1.02000007]
[1609491944289,0.8,29057.0,29054.0,1.12171721]
[1609491944489,0.33180302,29056.0,29054.0,1.12171721]
[1609491944694,5.0002,29057.0,29054.0,0.12171721]
[1609491944695,0.0002,29057.0,29054.0,0.12171721]
[1609491944895,0.0002,29057.0,29053.0,5.179221]
[1609491944896,11.315547,29055.0,29053.0,5.179221]
[1609491945097,7.48430534,29054.0,29053.0,5.179221]
[1609491945588,7.80455022,29054.0,29053.0,5.179221]
[1609491946088,12.80455022,29054.0,29053.0,5.179221]
[1609491946489,12.80455022,29054.0,29053.0,5.50702749]
[1609491947071,12.80455022,29054.0,29053.0,5.179221]
[1609491947637,13.31985022,29054.0,29053.0,5.179221]
[1609491948036,13.31985022,29054.0,29053.0,5.28182966]
[1609491948232,13.31985022,29054.0,29053.0,5.179221]
[1609491948534,12.80455022,29054.0,29053.0,5.179221]
[1609491950473,12.80455022,29054.0,29051.0,0.5472983]
[1609491950778,6.315547,29052.0,29051.0,0.2193]
[1609491950972,6.64735002,29052.0,29051.0,0.2193]
[1609491951172,11.64735002,29052.0,29051.0,0.54718362]
[1609491951374,11.64735002,29052.0,29051.0,0.2193]
[1609491951976,12.64735002,29052.0,29051.0,0.2193]
[1609491952274,12.315547,29052.0,29051.0,0.2193]
[1609491953795,6.565547,29052.0,29051.0,0.2193]
[1609491954497,6.365547,29052.0,29051.0,0.2193]
[1609491955402,6.365547,29052.0,29051.0,0.54703461]
[1609491955601,6.0,29052.0,29051.0,0.54703461]
[1609491956004,6.0,29052.0,29051.0,0.2193]
[1609491957312,5.0,29052.0,29051.0,0.2193]
[1609491957705,0.0002,29055.0,29051.0,1.2193]
[1609491957706,0.33180302,29055.0,29051.0,1.2193]
[1609491957905,5.0,29052.0,29051.0,1.2193]
[1609491958323,5.0,29057.0,29051.0,1.2193]
[1609491958324,5.0002,29054.0,29051.0,1.2193]
[1609491958522,5.0,29052.0,29051.0,1.2193]
[1609491958923,0.33180302,29055.0,29051.0,1.2193]
[1609491959126,0.0002,29056.0,29051.0,1.2193]
[1609491959127,5.0,29052.0,29051.0,1.30661281]
[1609491959327,5.0,29055.0,29051.0,1.2193]
[1609491959523,0.33200302,29054.0,29051.0,1.2193]
[1609491959824,0.795,29053.0,29051.0,1.2193]
[1609491960124,0.33180302,29052.0,29051.0,1.2193]
[1609491960329,0.33180302,29055.0,29051.0,1.2193]
[1609491960529,10.0,29052.0,29051.0,1.2193]
[1609491960830,5.0002,29055.0,29051.0,1.2193]
[1609491961028,10.0,29052.0,29051.0,1.2193]
[1609491961228,10.225,29054.0,29051.0,1.2193]
[1609491961426,5.0,29052.0,29051.0,1.2193]
[1609491961629,5.0,29053.0,29051.0,1.2193]
[1609491961932,10.33180302,29052.0,29051.0,1.2193]
[1609491962175,10.0,29052.0,29051.0,1.2193]
[1609491962376,1.88,29052.0,29051.0,1.2193]
[1609491962678,10.0,29052.0,29051.0,1.2193]
[1609491962879,2.68180302,29052.0,29051.0,1.2193]
[1609491963176,5.33180302,29052.0,29051.0,1.2193]
[1609491963376,10.0,29052.0,29051.0,1.2193]
[1609491963578,5.965,29052.0,29051.0,1.2193]
[1609491963779,10.965,29052.0,29051.0,1.2193]
[1609491967938,10.94499907,29052.0,29051.0,1.2193]
[1609491968639,9.97999907,29052.0,29051.0,1.2193]
[1609491970943,9.99088539,29052.0,29051.0,1.2193]
[1609491971143,10.99088539,29052.0,29051.0,1.2193]
[1609491973387,10.99088539,29052.0,29051.0,1.36062717]
[1609491973593,11.19088539,29052.0,29051.0,1.36062717]
[1609491973798,11.55643239,29052.0,29051.0,0.36062717]
[1609491974589,11.55643239,29052.0,29051.0,0.2193]
[1609491975788,11.55643239,29052.0,29051.0,0.1993]
[1609491977545,10.55643239,29052.0,29051.0,0.1993]
[1609491981151,10.55643239,29052.0,29051.0,0.34062717]
[1609491982256,10.55643239,29052.0,29047.0,0.49427241]
[1609491982556,0.33180302,29050.0,29047.0,0.49427241]
[1609491982768,11.0,29051.0,29050.0,0.46819698]
[1609491982970,1.365547,29051.0,29050.0,0.46819698]
[1609491983270,10.365547,29051.0,29050.0,0.46819698]
[1609491983669,10.7134991,29051.0,29050.0,0.46819698]
[1609491983870,10.0790321,29051.0,29047.0,0.14132717]
[1609491984071,1.365533,29050.0,29047.0,0.14132717]
[1609491984272,11.365533,29050.0,29047.0,0.14132717]
[1609491984471,1.0,29049.0,29047.0,0.14132717]
[1609491984679,1.0,29049.0,29048.0,0.365513]
[1609491984880,10.365533,29049.0,29048.0,1.14132717]
[1609491985078,5.365533,29049.0,29048.0,1.14132717]
[1609491985281,5.81,29049.0,29048.0,1.14132717]
[1609491985480,10.81,29049.0,29048.0,1.14132717]
[1609491987779,10.81,29049.0,29048.0,1.50684117]
[1609491989093,10.81,29049.0,29048.0,1.14132717]
[1609491989491,10.81,29049.0,29048.0,1.50684117]
[1609491990492,10.81,29049.0,29048.0,1.14132717]
[1609491990896,9.81,29049.0,29046.0,0.49458247]
[1609491991099,1.0,29048.0,29046.0,0.49458247]
[1609491991295,11.0,29048.0,29047.0,0.365527]
[1609491991696,1.0,29048.0,29047.0,0.365527]
[1609491991896,5.0,29048.0,29047.0,0.365529]
[1609491992338,10.0,29048.0,29047.0,0.365529]
[1609491992541,5.0,29049.0,29046.0,0.49458247]
[1609491992841,5.0,29047.0,29046.0,0.49458247]
[1609491993237,5.88,29048.0,29046.0,0.49458247]
[1609491993441,5.0,29047.0,29046.0,0.49458247]
[1609491993642,5.0,29047.0,29045.0,0.49534613]
[1609491993643,11.245533,29047.0,29045.0,0.49534613]
[1609491993848,3.715533,29046.0,29045.0,0.6366733]
[1609491994082,1.115533,29046.0,29045.0,0.6366733]
[1609491994292,10.0,29051.0,29045.0,1.0022063]
[1609491994494,10.0,29046.0,29045.0,0.6366733]
[1609491994688,10.0,29050.0,29045.0,0.50686017]
[1609491994886,0.6702,29055.0,29046.0,0.790533]
[1609491995093,10.0,29049.0,29047.0,0.08731281]
[1609491995392,10.0,29051.0,29048.0,0.365515]
[1609491995584,0.0002,29054.0,29048.0,0.365515]
[1609491995786,0.0002,29054.0,29049.0,0.165]
[1609491995987,10.0,29051.0,29050.0,0.365484]
[1609491996188,10.445,29051.0,29050.0,0.365484]
[1609491996587,10.45588674,29051.0,29050.0,0.365484]
[1609491998713,10.82141974,29051.0,29046.0,0.49548739]
[1609491998913,1.165533,29050.0,29048.0,1.0]
[1609491999111,11.165533,29050.0,29048.0,1.0]
[1609491999411,10.0,29049.0,29048.0,1.0]
[1609491999712,11.365533,29049.0,29048.0,1.0]
[1609492000214,11.365533,29049.0,29048.0,0.991325]
[1609492003218,11.40841575,29049.0,29048.0,0.991325]
[1609492003432,11.365533,29049.0,29048.0,0.991325]
[1609492004738,11.403283,29049.0,29048.0,0.991325]
[1609492005033,11.365533,29049.0,29048.0,0.991325]
[1609492005237,11.407143,29049.0,29048.0,0.991325]
[1609492005534,11.365533,29049.0,29048.0,0.991325]
[1609492005933,11.0,29049.0,29048.0,0.991325]
[1609492006735,11.403903,29049.0,29048.0,0.991325]
[1609492006939,11.37642031,29049.0,29048.0,0.991325]
[1609492007231,11.41954031,29049.0,29048.0,1.48786457]
[1609492007394,11.37642031,29049.0,29048.0,1.48786457]
[1609492007591,11.41182031,29049.0,29048.0,1.48786457]
[1609492007795,10.01088731,29049.0,29048.0,1.85337857]
[1609492008291,10.01088731,29049.0,29048.0,1.48786457]
[1609492008888,10.37642031,29049.0,29048.0,1.48786457]
[1609492009729,10.37642031,29049.0,29048.0,1.47786457]
[1609492010129,10.01088731,29049.0,29048.0,1.47786457]
[1609492010835,9.01088731,29049.0,29048.0,3.75932517]
[1609492011034,8.96212027,29049.0,29048.0,3.89663798]
[1609492011231,8.21383689,29049.0,29048.0,3.9801061]
[1609492011434,8.21383689,29049.0,29048.0,4.15856653]
[1609492011435,8.17689588,29049.0,29048.0,4.15856653]
[1609492011632,8.17689588,29049.0,29048.0,4.95856653]
[1609492011836,5.01088731,29049.0,29048.0,6.37989358]
[1609492012030,4.98002301,29049.0,29048.0,6.37989358]
[1609492012228,4.72563601,29049.0,29048.0,6.37989358]
[1609492012429,4.99908731,29052.0,29048.0,5.62989358]
[1609492012734,4.99908731,29052.0,29051.0,2.72385481]
[1609492012735,3.86362831,29052.0,29051.0,2.72385481]
[1609492012960,3.93,29053.0,29052.0,1.88276841]
[1609492013159,3.9295,29053.0,29052.0,2.36276841]
[1609492013361,4.46,29054.0,29053.0,1.88275341]
[1609492013557,4.46,29054.0,29053.0,1.88775341]
[1609492013865,5.0,29054.0,29053.0,2.52231241]
[1609492014058,5.0,29054.0,29053.0,2.97506422]
[1609492014464,10.0,29055.0,29053.0,2.97506422]
[1609492014662,5.0002,29055.0,29054.0,2.11273841]
[1609492014862,5.0,29062.0,29055.0,0.9998]
[1609492015063,0.6858,29064.0,29056.0,0.925391]
[1609492015265,5.0,29061.0,29057.0,0.33180302]
[1609492015466,5.0,29061.0,29060.0,0.365339]
[1609492015662,0.6858,29064.0,29060.0,0.365339]
[1609492015968,0.48,29061.0,29060.0,1.365339]
[1609492016161,1.73,29061.0,29060.0,1.365339]
[1609492016371,10.03,29061.0,29060.0,1.355339]
[1609492016571,10.395533,29061.0,29060.0,0.99]
[1609492017064,15.395533,29061.0,29060.0,0.99]
[1609492019390,12.095533,29061.0,29060.0,0.99]
[1609492019991,11.73,29061.0,29060.0,0.99]
[1609492020289,11.73,29061.0,29060.0,1.13132705]
[1609492020689,11.76601,29061.0,29060.0,1.13132705]
[1609492020891,11.73,29061.0,29060.0,1.13132705]
[1609492021590,11.73,29061.0,29060.0,1.49666305]
[1609492022528,11.77333,29061.0,29060.0,1.49666305]
[1609492022826,11.73,29061.0,29060.0,1.49666305]
[1609492023630,10.48,29061.0,29060.0,1.49666305]
[1609492024441,10.51227,29061.0,29060.0,1.49666305]
[1609492024647,10.48,29061.0,29060.0,1.49666305]
[1609492024844,10.51149,29061.0,29060.0,1.49666305]
[1609492025045,10.48,29061.0,29060.0,1.355336]
[1609492025244,10.5271,29061.0,29060.0,1.355336]
[1609492025443,10.48,29061.0,29060.0,1.355336]
[1609492025643,10.563263,29061.0,29060.0,1.355336]
[1609492025945,10.48,29061.0,29060.0,1.355336]
[1609492026152,10.52,29061.0,29060.0,1.355336]
[1609492026449,10.0,29061.0,29060.0,1.49666305]
[1609492028851,9.995,29061.0,29060.0,1.49666305]
[1609492032377,9.995,29061.0,29060.0,1.82454356]
[1609492032776,10.00588286,29061.0,29060.0,1.82454356]
[1609492034383,10.00588286,29061.0,29060.0,3.16354597]
[1609492034584,9.99828286,29061.0,29060.0,3.58854597]
[1609492034786,9.99828286,29061.0,29060.0,3.26066546]
[1609492034982,9.99678286,29061.0,29060.0,3.43266546]
[1609492035402,5.01058286,29061.0,29060.0,3.43266546]
[1609492035599,10.01058286,29061.0,29060.0,3.43266546]
[1609492036399,10.00738286,29061.0,29060.0,3.43266546]
[1609492036598,9.00738286,29061.0,29060.0,2.44266546]
[1609492036798,8.84238286,29061.0,29060.0,2.44266546]
[1609492037098,8.80938286,29061.0,29060.0,2.44266546]
[1609492037374,8.80278286,29061.0,29060.0,2.44266546]
[1609492037782,8.80148286,29061.0,29060.0,2.44266546]
[1609492037976,8.80118286,29061.0,29060.0,2.44266546]
[1609492038375,3.80118286,29061.0,29060.0,2.44266546]
[1609492038574,3.7811821,29061.0,29060.0,2.44266546]
[1609492038977,8.7811821,29061.0,29060.0,2.44266546]
[1609492039205,3.7811821,29061.0,29060.0,2.44266546]
[1609492039408,8.6165821,29061.0,29060.0,2.52997827]
[1609492039609,3.6165821,29061.0,29060.0,2.44266546]
[1609492039806,8.6165821,29061.0,29060.0,2.40168827]
[1609492040008,8.6165821,29061.0,29060.0,2.31437546]
[1609492040208,3.6165821,29061.0,29060.0,2.31437546]
[1609492040410,3.6165821,29061.0,29060.0,2.40168827]
[1609492040411,8.6165821,29061.0,29060.0,2.40168827]
[1609492040710,0.01088286,29061.0,29060.0,3.20089812]
[1609492040911,1.37101423,29066.0,29060.0,3.20089812]
[1609492041115,1.37101423,29066.0,29062.0,1.415307]
[1609492041116,3.887,29063.0,29062.0,1.415307]
[1609492041315,5.0,29065.0,29062.0,2.47993222]
[1609492041511,5.0,29065.0,29064.0,1.365277]
[1609492041512,4.993,29065.0,29064.0,1.365277]
[1609492041810,1.29833409,29066.0,29065.0,0.97690641]
[1609492042114,6.28733409,29066.0,29065.0,3.17357727]
[1609492042310,6.28533409,29066.0,29065.0,3.17357727]
[1609492042510,6.28533409,29066.0,29065.0,4.17357727]
[1609492042707,6.28533409,29066.0,29065.0,4.08626446]
[1609492042934,6.28533409,29066.0,29065.0,4.18919202]
[1609492043335,1.28533409,29066.0,29065.0,4.27650483]
[1609492043737,1.18608798,29066.0,29065.0,4.32650483]
[1609492043941,1.18564538,29066.0,29065.0,4.32650483]
[1609492044138,1.18113138,29066.0,29065.0,4.65830785]
[1609492044337,1.18113138,29066.0,29065.0,5.14754411]
[1609492044538,1.18113138,29066.0,29065.0,4.81574109]
[1609492044742,0.0014,29067.0,29066.0,1.02690641]
[1609492044941,0.0014,29067.0,29066.0,3.14301858]
[1609492045145,0.0014,29067.0,29066.0,3.4748216]
[1609492045341,0.0012,29067.0,29066.0,3.4748216]
[1609492045548,5.0012,29067.0,29066.0,2.86135348]
[1609492045847,5.0012,29067.0,29066.0,2.52955046]
[1609492046043,5.0012,29067.0,29066.0,2.32348046]
[1609492046243,4.5632,29067.0,29066.0,3.12348046]
[1609492046445,4.5632,29067.0,29066.0,4.12348046]
[1609492046648,4.4752,29067.0,29066.0,4.12348046]
[1609492048044,4.45519938,29067.0,29066.0,4.12348046]
[1609492049087,0.0016,29068.0,29066.0,4.67557629]
[1609492049283,0.0016,29068.0,29067.0,2.65026948]
[1609492049485,5.0,29071.0,29070.0,1.0]
[1609492049786,5.0,29073.0,29070.0,3.34209441]
[1609492049984,4.99640091,29072.0,29071.0,1.82388143]
[1609492050183,5.0,29072.0,29071.0,1.45870943]
[1609492050382,9.99928001,29072.0,29071.0,1.49207641]
[1609492050582,10.0,29073.0,29071.0,1.49207641]
[1609492050884,0.00160001,29074.0,29072.0,2.24196102]
[1609492051086,0.00160001,29074.0,29073.0,0.365144]
[1609492051486,10.00160001,29074.0,29073.0,0.365144]
[1609492052743,10.00160001,29074.0,29073.0,0.69007775]
[1609492053438,10.00160001,29074.0,29073.0,0.86507775]
[1609492053840,10.00160001,29074.0,29073.0,0.540144]
[1609492054540,10.00160001,29074.0,29073.0,0.365144]
[1609492055243,10.00160001,29074.0,29073.0,5.365144]
[1609492055443,10.00160001,29074.0,29073.0,5.69694702]
[1609492055744,10.00160001,29074.0,29073.0,6.23827407]
[1609492055941,9.99475915,29074.0,29073.0,6.23827407]
[1609492056246,9.99339095,29074.0,29073.0,6.23827407]
[1609492058258,9.82838017,29074.0,29073.0,5.50647105]
[1609492058457,9.82838017,29074.0,29073.0,5.83827407]
[1609492059559,9.82277391,29074.0,29073.0,6.21827407]
[1609492059855,9.82277391,29074.0,29073.0,5.88647105]
[1609492062260,9.60242056,29074.0,29073.0,6.21125336]
[1609492062662,9.33519256,29074.0,29073.0,6.21125336]
[1609492063162,9.33519256,29074.0,29073.0,5.88647105]
[1609492063579,9.31806256,29074.0,29073.0,6.21130372]
[1609492063783,9.31806256,29074.0,29073.0,5.88647105]
[1609492064980,9.31806256,29074.0,29073.0,6.21827407]
[1609492065180,9.30093256,29074.0,29073.0,6.21827407]
[1609492065482,9.30093256,29074.0,29073.0,5.88647105]
[1609492065980,6.99841556,29074.0,29073.0,5.88647105]
[1609492066182,6.99841556,29074.0,29073.0,5.745144]
[1609492066382,6.98128556,29074.0,29073.0,5.745144]
[1609492067399,3.23724326,29074.0,29073.0,5.745144]
[1609492067556,8.23724326,29074.0,29073.0,5.745144]
[1609492069390,7.8498789,29074.0,29073.0,5.745144]
[1609492069792,7.60877666,29074.0,29073.0,5.745144]
[1609492070193,7.56054958,29074.0,29073.0,5.745144]
[1609492070695,7.5509025,29074.0,29073.0,5.745144]
[1609492070897,7.54897309,29074.0,29073.0,5.495144]
[1609492071093,7.41129108,29074.0,29073.0,5.495144]
[1609492071494,7.38375089,29074.0,29073.0,5.495144]
[1609492071694,7.37824191,29074.0,29073.0,5.495144]
[1609492072094,7.37714011,29074.0,29073.0,5.495144]
[1609492072294,7.15488613,29074.0,29073.0,5.495144]
[1609492077428,8.56592613,29074.0,29073.0,5.495144]
[1609492077628,7.68145913,29074.0,29073.0,5.33180302]
[1609492077829,8.68145913,29074.0,29073.0,5.0]
[1609492082488,8.89414632,29074.0,29073.0,5.0]
[1609492083443,11.29414632,29074.0,29073.0,5.0]
[1609492083944,11.28914632,29074.0,29073.0,5.0]
[1609492084481,8.88914632,29074.0,29073.0,5.0]
[1609492085283,8.78145913,29074.0,29073.0,5.32667224]
[1609492085683,8.88914632,29074.0,29073.0,5.32667224]
[1609492086285,10.93914632,29074.0,29073.0,5.32667224]
[1609492086485,8.88914632,29074.0,29073.0,5.32667224]
[1609492086685,8.78145913,29074.0,29073.0,5.32667224]
[1609492086885,8.78145913,29074.0,29073.0,5.0]
[1609492087287,10.08914632,29074.0,29073.0,5.0]
[1609492087687,8.88914632,29074.0,29073.0,5.0]
[1609492089019,8.78145913,29074.0,29073.0,5.0]
[1609492090923,8.88914632,29074.0,29073.0,5.0]
[1609492091322,9.73914632,29074.0,29073.0,5.0]
[1609492091921,8.88914632,29074.0,29073.0,5.0]
[1609492092126,8.78145913,29074.0,29073.0,5.0]
[1609492092824,8.88914632,29074.0,29073.0,5.0]
[1609492093224,9.53914632,29074.0,29073.0,5.0]
[1609492093625,8.88914632,29074.0,29073.0,5.0]
[1609492094235,9.63914632,29074.0,29073.0,5.0]
[1609492095753,9.67388632,29074.0,29073.0,5.0]
[1609492096140,9.46619913,29074.0,29073.0,5.0]
[1609492096344,9.46619913,29074.0,29073.0,0.94037]
[1609492096345,11.81619913,29074.0,29073.0,0.94037]
[1609492096545,11.86145913,29074.0,29073.0,0.94037]
[1609492097433,9.51145913,29074.0,29073.0,0.94037]
[1609492097544,8.68145913,29074.0,29073.0,0.94037]
[1609492097851,8.68145913,29074.0,29070.0,0.32657755]
[1609492097852,6.165468,29071.0,29070.0,0.32657755]
[1609492098044,6.5295573,29071.0,29070.0,0.32657755]
[1609492098542,16.165468,29071.0,29069.0,0.32716411]
[1609492098844,8.07305806,29070.0,29069.0,0.32716411]
[1609492099040,18.07305806,29070.0,29069.0,0.32716411]
[1609492099241,18.08373766,29070.0,29069.0,0.32716411]
[1609492099460,17.71964836,29070.0,29069.0,0.32716411]
[1609492099663,17.71964836,29070.0,29065.0,0.2193]
[1609492099866,6.165468,29066.0,29065.0,0.2193]
[1609492100068,7.7010973,29066.0,29065.0,0.2193]
[1609492100265,17.7010973,29066.0,29065.0,0.2193]
[1609492100464,18.337008,29066.0,29065.0,0.2193]
[1609492101866,18.33587452,29066.0,29065.0,0.2193]
[1609492103368,18.39470452,29066.0,29065.0,0.2193]
[1609492103771,12.59470452,29066.0,29065.0,0.2193]
[1609492104573,12.60558581,29066.0,29065.0,0.2193]
[1609492104773,12.54675581,29066.0,29065.0,0.2193]
[1609492104988,12.54775581,29066.0,29065.0,0.2193]
[1609492106587,12.53775581,29066.0,29065.0,0.2193]
[1609492114926,12.52775581,29066.0,29065.0,0.2193]
[1609492122958,12.56183581,29066.0,29065.0,0.2193]
[1609492123260,12.56919581,29066.0,29065.0,0.2193]
[1609492123461,12.56265581,29066.0,29065.0,0.2193]
[1609492123662,12.56895581,29066.0,29065.0,0.2193]
[1609492123881,12.56634163,29066.0,29065.0,0.2193]
[1609492124179,12.56979581,29066.0,29065.0,0.2193]
[1609492124379,12.56370581,29066.0,29065.0,0.2193]
[1609492124581,12.56672839,29066.0,29065.0,0.2193]
[1609492124781,12.54726626,29066.0,29065.0,0.2193]
[1609492124982,0.365468,29065.0,29061.0,0.49240403]
[1609492125182,1.365668,29065.0,29061.0,0.49240403]
[1609492125380,0.0434,29064.0,29061.0,0.49240403]
[1609492125581,1.0,29062.0,29061.0,0.49240403]
[1609492125781,3.89359,29062.0,29061.0,0.49240403]
[1609492126081,7.40576768,29062.0,29061.0,0.49240403]
[1609492126284,12.365468,29062.0,29061.0,0.49240403]
[1609492126482,7.402778,29062.0,29061.0,0.49240403]
[1609492126682,12.365468,29062.0,29061.0,0.49240403]
[1609492126984,12.407088,29062.0,29061.0,0.49240403]
[1609492127186,12.402768,29062.0,29060.0,0.172]
[1609492127573,10.4671,29061.0,29060.0,0.172]
[1609492127724,10.832568,29061.0,29060.0,0.172]
[1609492128027,10.83000355,29061.0,29060.0,0.172]
[1609492128424,10.830638,29061.0,29060.0,0.172]
[1609492128624,10.831448,29061.0,29060.0,0.172]
[1609492128824,10.834118,29061.0,29060.0,0.172]
[1609492129124,10.839168,29061.0,29060.0,0.172]
[1609492129323,10.840668,29061.0,29060.0,0.172]
[1609492129569,10.841368,29061.0,29060.0,0.172]
[1609492129769,10.47640515,29061.0,29060.0,0.287234]
[1609492129971,10.48688302,29061.0,29060.0,0.287234]
[1609492130170,10.48298302,29061.0,29060.0,0.287234]
[1609492130472,10.48562302,29061.0,29060.0,0.287234]
[1609492130669,10.48233205,29061.0,29060.0,0.287234]
[1609492130869,10.47488302,29061.0,29060.0,0.172]
[1609492131070,10.47191273,29061.0,29060.0,0.172]
[1609492131368,10.44088302,29061.0,29060.0,0.287234]
[1609492131667,10.44088302,29061.0,29060.0,0.172]
[1609492132069,10.44088302,29061.0,29060.0,0.287234]
[1609492132269,10.48502302,29061.0,29060.0,0.287234]
[1609492132470,10.47889302,29061.0,29060.0,0.287234]
[1609492132874,10.44088302,29061.0,29060.0,0.42856068]
[1609492133071,10.47378302,29061.0,29060.0,0.42856068]
[1609492133291,10.47978302,29061.0,29060.0,0.42856068]
[1609492133493,10.4836811,29061.0,29060.0,0.42856068]
[1609492133693,10.44088302,29061.0,29060.0,0.42856068]
[1609492135691,10.44088302,29061.0,29060.0,0.287234]
[1609492139013,10.44088302,29061.0,29060.0,0.42856068]
[1609492139813,10.01088302,29061.0,29060.0,0.42856068]
[1609492141714,10.01088302,29061.0,29060.0,1.42856068]
[1609492142786,10.01088302,29061.0,29060.0,1.42356068]
[1609492143088,10.55588302,29061.0,29060.0,1.42356068]
[1609492144930,10.55588302,29061.0,29060.0,0.42356068]
[1609492146834,10.65588302,29061.0,29060.0,0.42356068]
[1609492147037,10.65588302,29061.0,29060.0,0.30832668]
[1609492147038,12.29579821,29061.0,29060.0,0.30832668]
[1609492147236,12.29579821,29061.0,29060.0,0.14132668]
[1609492147438,12.29579821,29061.0,29058.0,0.03582582]
[1609492147736,6.27315519,29059.0,29057.0,0.14132668]
[1609492147936,6.82986876,29058.0,29057.0,0.14132668]
[1609492148460,7.82986876,29058.0,29057.0,0.14132668]
[1609492148757,17.82986876,29058.0,29057.0,0.14132668]
[1609492149461,12.02986876,29058.0,29057.0,0.14132668]
[1609492151960,12.02986876,29058.0,29056.0,0.2193]
[1609492152259,19.06080084,29057.0,29056.0,0.2193]
[1609492152460,18.69671154,29057.0,29056.0,0.2193]
[1609492152763,18.69671154,29057.0,29054.0,0.23374153]
[1609492152962,4.965468,29055.0,29054.0,0.23374153]
[1609492153263,10.065468,29055.0,29054.0,0.23374153]
[1609492153461,15.065468,29055.0,29054.0,0.23374153]
[1609492153663,16.065468,29055.0,29054.0,0.23374153]
[1609492154387,16.933868,29055.0,29054.0,0.10214153]
[1609492154786,17.104788,29055.0,29051.0,0.14132668]
[1609492155090,0.365468,29053.0,29050.0,0.57982668]
[1609492155286,0.1,29052.0,29050.0,0.57982668]
[1609492155490,5.715468,29051.0,29050.0,0.57982668]
[1609492155692,5.47315519,29051.0,29050.0,0.57982668]
[1609492155890,15.47315519,29051.0,29050.0,0.57982668]
[1609492156088,15.365468,29051.0,29050.0,0.68452166]
[1609492156290,12.47315519,29051.0,29050.0,0.54319498]
[1609492156589,12.47315519,29051.0,29050.0,0.4385]
[1609492157698,12.47315519,29051.0,29050.0,0.54047898]
[1609492159631,12.365468,29051.0,29050.0,0.54047898]
[1609492159832,12.47315519,29051.0,29050.0,0.54047898]
[1609492160634,12.365468,29051.0,29050.0,0.54047898]
[1609492161134,12.37954637,29051.0,29050.0,0.54047898]
[1609492164267,12.37954637,29051.0,29050.0,0.4385]
[1609492165168,12.37954637,29051.0,29050.0,0.438266]
[1609492165368,12.37954637,29051.0,29049.0,0.1999675]
[1609492165571,5.365468,29050.0,29049.0,0.1999675]
[1609492165769,16.6295573,29050.0,29049.0,0.1999675]
[1609492165968,12.365468,29050.0,29049.0,0.1999675]
[1609492166368,12.37954024,29050.0,29049.0,0.1999675]
[1609492168772,12.37954024,29050.0,29049.0,0.0499675]
[1609492168989,12.37954024,29050.0,29049.0,0.03583704]
[1609492168990,12.42113024,29050.0,29049.0,0.03583704]
[1609492169292,12.42011024,29050.0,29049.0,0.03583704]
[1609492169488,12.37954024,29050.0,29049.0,0.03583704]
[1609492171187,12.48722743,29050.0,29049.0,0.03583704]
[1609492172289,12.37954024,29050.0,29049.0,0.03583704]
[1609492172770,12.48722743,29050.0,29049.0,0.03583704]
[1609492173867,12.37954024,29050.0,29049.0,0.03583704]
[1609492174806,12.48722743,29050.0,29049.0,0.03583704]
[1609492175009,12.37954024,29050.0,29049.0,0.03583704]
[1609492176713,12.48722743,29050.0,29049.0,0.03583704]
[1609492176913,12.37954024,29050.0,29049.0,0.03583704]
[1609492177412,12.48722743,29050.0,29049.0,0.03583704]
[1609492177815,12.48722743,29050.0,29049.0,0.53010789]
[1609492178012,12.48722743,29050.0,29049.0,0.67143457]
[1609492178536,12.37954024,29050.0,29049.0,0.17716372]
[1609492178733,12.48722743,29050.0,29049.0,0.17716372]
[1609492178935,12.48722743,29050.0,29049.0,0.03583704]